fUST/lending_fUST_20250526
["ID","MTS","AMOUNT","RATE_DAILY","PERIOD"]
[362389694,1748245843478,-430.0,0.00019178,2]
[362389695,1748245843488,-430.0,0.00019178,2]
[362389696,1748245843498,-430.0,0.00019178,2]
[362389697,1748245843508,-432.57824695,0.00019178,2]
[362389698,1748245843517,-430.0,0.00019178,2]
[362389699,1748245843526,-430.0,0.00019178,2]
[362389700,1748245843536,-430.0,0.00019178,2]
[362389701,1748245843545,-430.0,0.00019178,2]
[362389702,1748245843555,-430.0,0.00019178,2]
[362389703,1748245843564,-430.0,0.00019178,2]
[362389704,1748245843573,-430.0,0.00019178,2]
[362389705,1748245843583,-543.56687481,0.00019178,2]
[362389706,1748245843592,-430.0,0.00019178,2]
[362389707,1748245843602,-430.0,0.00019178,2]
[362389708,1748245843612,-157.78536811,0.00019178,2]
[362389709,1748245843622,-430.0,0.00019178,2]
[362389710,1748245843632,-240.0,0.00019178,2]
[362389711,1748245843642,-430.0,0.00019178,2]
[362389712,1748245843652,-430.0,0.00019178,2]
[362389713,1748245843662,-430.0,0.00019178,2]
[362389714,1748245843672,-539.73318184,0.00019178,2]
[362389715,1748245843681,-430.0,0.00019178,2]
[362389716,1748245843691,-430.0,0.00019178,2]
[362389717,1748245843702,-430.0,0.00019178,2]
[362389719,1748245843711,-431.32906541,0.00019178,2]
[362389720,1748245843722,-435.28004367,0.00019178,2]
[362389722,1748245843732,-434.5987658,0.00019178,2]
[362389723,1748245843741,-430.0,0.00019178,2]
[362389724,1748245843751,-403.46820996,0.00019178,2]
[362389726,1748245843762,-430.0,0.00019178,2]
[362389728,1748245843771,-409.95272667,0.00019178,2]
[362389730,1748245843781,-430.0,0.00019178,2]
[362389732,1748245843792,-430.92488639,0.00019178,2]
[362389734,1748245843801,-430.0,0.00019178,2]
[362389736,1748245843812,-430.0,0.00019178,2]
[362389738,1748245843825,-430.0,0.00019178,2]
[362389740,1748245843834,-430.0,0.00019178,2]
[362389742,1748245843844,-430.0,0.00019178,2]
[362389744,1748245843853,-430.0,0.00019178,2]
[362389746,1748245843865,-430.0,0.00019178,2]
[362389749,1748245843874,-430.0,0.00019178,2]
[362389751,1748245843884,-430.0,0.00019178,2]
[362389752,1748245843894,-381.77764351,0.00019178,2]
[362389754,1748245843905,-447.75659329,0.00019178,2]
[362389756,1748245843914,-313.19630834,0.00019178,2]
[362389758,1748245843924,-430.0,0.00019178,2]
[362389761,1748245843934,-500.0,0.00019178,2]
[362389762,1748245843943,-432.14914117,0.00019178,2]
[362389765,1748245843953,-430.0,0.00019178,2]
[362389767,1748245843962,-438.46454902,0.00019178,2]
[362389769,1748245843972,-151.0,0.00019178,2]
[362389770,1748245843982,-151.0,0.00019178,2]
[362389773,1748245843991,-432.78400265,0.00019178,2]
[362389775,1748245844001,-435.59603663,0.00019178,2]
[362389777,1748245844012,-438.56347625,0.00019178,2]
[362389779,1748245844021,-434.04083357,0.00019178,2]
[362389781,1748245844030,-430.0,0.00019178,2]
[362389783,1748245844040,-550.60008619,0.00019178,2]
[362389785,1748245844049,-432.10572513,0.00019178,2]
[362389787,1748245844058,-430.0,0.00019178,2]
[362389789,1748245844068,-434.33112965,0.00019178,2]
[362389791,1748245844077,-430.0,0.00019178,2]
[362389793,1748245844087,-430.0,0.00019178,2]
[362389795,1748245844096,-430.0,0.00019178,2]
[362389797,1748245844106,-500.0,0.00019178,2]
[362389799,1748245844116,-518.23033614,0.00019178,2]
[362389801,1748245844126,-430.0,0.00019178,2]
[362389803,1748245844135,-430.0,0.00019178,2]
[362389805,1748245844144,-430.0,0.00019178,2]
[362389807,1748245844153,-430.0,0.00019178,2]
[362389809,1748245844163,-430.0,0.00019178,2]
[362389811,1748245844172,-430.0,0.00019178,2]
[362389813,1748245844182,-430.0,0.00019178,2]
[362389815,1748245844192,-437.71180655,0.00019178,2]
[362389817,1748245844202,-430.0,0.00019178,2]
[362389819,1748245844211,-430.0,0.00019178,2]
[362389821,1748245844221,-430.0,0.00019178,2]
[362389823,1748245844230,-401.94723826,0.00019178,2]
[362389825,1748245844240,-430.0,0.00019178,2]
[362389827,1748245844249,-430.0,0.00019178,2]
[362389829,1748245844258,-430.0,0.00019178,2]
[362389831,1748245844269,-430.0,0.00019178,2]
[362389833,1748245844278,-349.50595859,0.00019178,2]
[362389835,1748245844288,-430.0,0.00019178,2]
[362389837,1748245844297,-430.0,0.00019178,2]
[362389839,1748245844307,-430.0,0.00019178,2]
[362389842,1748245844316,-507.72,0.00019178,2]
[362389844,1748245844326,-430.0,0.00019178,2]
[362389846,1748245844336,-430.0,0.00019178,2]
[362389848,1748245844346,-430.0,0.00019178,2]
[362389850,1748245844355,-430.0,0.00019178,2]
[362389852,1748245844365,-217.79115115,0.00019178,2]
[362389854,1748245844374,-430.0,0.00019178,2]
[362389856,1748245844388,-514.78590229,0.00019178,2]
[362389858,1748245844402,-430.0,0.00019178,2]
[362389860,1748245844411,-380.11971891,0.00019178,2]
[362389862,1748245844420,-430.0,0.00019178,2]
[362389864,1748245844430,-412.85335192,0.00019178,2]
[362389866,1748245844440,-430.0,0.00019178,2]
[362389868,1748245844449,-430.0,0.00019178,2]
[362389870,1748245844458,-354.84275888,0.00019178,2]
[362389872,1748245844468,-430.64807972,0.00019178,2]
[362389874,1748245844478,-430.0,0.00019178,2]
[362389876,1748245844487,-430.0,0.00019178,2]
[362389878,1748245844497,-430.0,0.00019178,2]
[362389880,1748245844507,-430.0,0.00019178,2]
[362389882,1748245844517,-430.0,0.00019178,2]
[362389884,1748245844527,-348.48606081,0.00019178,2]
[362389887,1748245844536,-430.0,0.00019178,2]
[362389889,1748245844546,-430.0,0.00019178,2]
[362389891,1748245844555,-436.53113975,0.00019178,2]
[362389893,1748245844565,-430.0,0.00019178,2]
[362389895,1748245844575,-430.0,0.00019178,2]
[362389897,1748245844586,-430.0,0.00019178,2]
[362389899,1748245844595,-430.0,0.00019178,2]
[362389901,1748245844606,-430.0,0.00019178,2]
[362389903,1748245844616,-430.0,0.00019178,2]
[362389905,1748245844629,-211.87805171,0.00019178,2]
[362389907,1748245844639,-432.30312318,0.00019178,2]
[362389910,1748245844648,-430.0,0.00019178,2]
[362389912,1748245844658,-430.0,0.00019178,2]
[362389914,1748245844668,-346.51990883,0.00019178,2]
[362389916,1748245844678,-430.0,0.00019178,2]
[362389918,1748245844688,-430.0,0.00019178,2]
[362389920,1748245844697,-448.57,0.00019178,2]
[362389922,1748245844706,-432.07231314,0.00019178,2]
[362389924,1748245844716,-430.0,0.00019178,2]
[362389926,1748245844726,-434.48283474,0.00019178,2]
[362389928,1748245844736,-430.0,0.00019178,2]
[362389930,1748245844746,-430.0,0.00019178,2]
[362389932,1748245844756,-430.0,0.00019178,2]
[362389934,1748245844767,-430.0,0.00019178,2]
[362389936,1748245844776,-430.0,0.00019178,2]
[362389938,1748245844786,-434.54221826,0.00019178,2]
[362389940,1748245844795,-430.0,0.00019178,2]
[362389942,1748245844804,-440.17217361,0.00019178,2]
[362389944,1748245844815,-439.86840454,0.00019178,2]
[362389946,1748245844825,-430.0,0.00019178,2]
[362389948,1748245844835,-434.97166501,0.00019178,2]
[362389950,1748245844844,-430.0,0.00019178,2]
[362389952,1748245844855,-430.0,0.00019178,2]
[362389954,1748245844865,-430.0,0.00019178,2]
[362389956,1748245844874,-430.0,0.00019178,2]
[362389958,1748245844884,-430.0,0.00019178,2]
[362389960,1748245844894,-407.4263301,0.00019178,2]
[362389962,1748245844903,-430.0,0.00019178,2]
[362389964,1748245844914,-444.29,0.00019178,2]
[362389966,1748245844924,-430.0,0.00019178,2]
[362389968,1748245844933,-430.0,0.00019178,2]
[362389970,1748245844943,-430.0,0.00019178,2]
[362389972,1748245844952,-436.67096407,0.00019178,2]
[362389974,1748245844962,-435.9951939,0.00019178,2]
[362389976,1748245844971,-430.0,0.00019178,2]
[362389978,1748245844981,-430.0,0.00019178,2]
[362389980,1748245844990,-426.53693295,0.00019178,2]
[362389983,1748245845000,-430.0,0.00019178,2]
[362389985,1748245845009,-430.0,0.00019178,2]
[362389987,1748245845019,-430.0,0.00019178,2]
[362389989,1748245845029,-193.76318109,0.00019178,2]
[362389991,1748245845038,-500.0,0.00019178,2]
[362389993,1748245845048,-430.0,0.00019178,2]
[362389995,1748245845058,-430.0,0.00019178,2]
[362389997,1748245845067,-515.59861751,0.00019178,2]
[362389999,1748245845076,-430.0,0.00019178,2]
[362390001,1748245845085,-430.0,0.00019178,2]
[362390003,1748245845095,-430.0,0.00019178,2]
[362390005,1748245845104,-422.66987332,0.00019178,2]
[362390007,1748245845114,-430.0,0.00019178,2]
[362390009,1748245845124,-489.51364884,0.00019178,2]
[362390011,1748245845133,-472.4,0.00019178,2]
[362390013,1748245845143,-437.63121481,0.00019178,2]
[362390015,1748245845152,-430.0,0.00019178,2]
[362390017,1748245845162,-430.0,0.00019178,2]
[362390019,1748245845171,-430.0,0.00019178,2]
[362390021,1748245845181,-430.0,0.00019178,2]
[362390023,1748245845191,-441.19447688,0.00019178,2]
[362390025,1748245845200,-430.0,0.00019178,2]
[362390027,1748245845210,-430.0,0.00019178,2]
[362390030,1748245845219,-520.0,0.00019178,2]
[362390033,1748245845229,-430.0,0.00019178,2]
[362390036,1748245845239,-430.0,0.00019178,2]
[362390039,1748245845248,-430.0,0.00019178,2]
[362390041,1748245845258,-430.0,0.00019178,2]
[362390043,1748245845267,-430.0,0.00019178,2]
[362390045,1748245845276,-430.0,0.00019178,2]
[362390047,1748245845287,-430.0,0.00019178,2]
[362390049,1748245845296,-430.0,0.00019178,2]
[362390051,1748245845305,-430.0,0.00019178,2]
[362390053,1748245845315,-430.0,0.00019178,2]
[362390055,1748245845325,-231.32561113,0.00019178,2]
[362390057,1748245845334,-435.81428046,0.00019178,2]
[362390059,1748245845345,-430.0,0.00019178,2]
[362390062,1748245845355,-430.0,0.00019178,2]
[362390064,1748245845364,-531.67811651,0.00019178,2]
[362390066,1748245845374,-430.0,0.00019178,2]
[362390067,1748245845383,-278.72171561,0.00019178,2]
[362390070,1748245845394,-473.87377456,0.00019178,2]
[362390072,1748245845403,-430.0,0.00019178,2]
[362390089,1748245845557,-430.13,0.00019178,2]
[362390091,1748245845567,-434.15968016,0.00019178,2]
[362390093,1748245845577,-699.59,0.00019178,2]
[362390095,1748245845587,-530.32295553,0.00019178,2]
[362390097,1748245845597,-430.0,0.00019178,2]
[362390099,1748245845607,-276.29667557,0.00019178,2]
[362390101,1748245845617,-430.0,0.00019178,2]
[362390103,1748245845627,-431.38406047,0.00019178,2]
[362390105,1748245845636,-430.0,0.00019178,2]
[362390107,1748245845646,-430.0,0.00019178,2]
[362390109,1748245845656,-430.0,0.00019178,2]
[362390111,1748245845666,-430.87968809,0.00019178,2]
[362390114,1748245845677,-430.0,0.00019178,2]
[362390116,1748245845686,-430.0,0.00019178,2]
[362390118,1748245845696,-430.0,0.00019178,2]
[362390120,1748245845706,-430.0,0.00019178,2]
[362390122,1748245845716,-437.60978903,0.00019178,2]
[362390124,1748245845725,-376.14923766,0.00019178,2]
[362390125,1748245845735,-430.0,0.00019178,2]
[362390128,1748245845744,-430.0,0.00019178,2]
[362390130,1748245845754,-434.28694993,0.00019178,2]
[362390131,1748245845763,-2830.25,0.00019178,2]
[362390133,1748245845773,-430.0,0.00019178,2]
[362390135,1748245845782,-430.0,0.00019178,2]
[362390137,1748245845792,-259.79756853,0.00019178,2]
[362390139,1748245845801,-430.0,0.00019178,2]
[362390141,1748245845811,-430.0,0.00019178,2]
[362390143,1748245845824,-475.36104579,0.00019178,2]
[362390145,1748245845833,-430.0,0.00019178,2]
[362390147,1748245845843,-430.0,0.00019178,2]
[362390149,1748245845852,-430.0,0.00019178,2]
[362390151,1748245845862,-494.39269028,0.00019178,2]
[362390153,1748245845871,-430.0,0.00019178,2]
[362390155,1748245845881,-430.0,0.00019178,2]
[362390157,1748245845891,-434.46125129,0.00019178,2]
[362390159,1748245845901,-430.0,0.00019178,2]
[362390161,1748245845911,-430.0,0.00019178,2]
[362390163,1748245845921,-430.0,0.00019178,2]
[362390165,1748245845931,-400.52936527,0.00019178,2]
[362390167,1748245845941,-433.03995065,0.00019178,2]
[362390169,1748245845952,-430.0,0.00019178,2]
[362390171,1748245845962,-430.0,0.00019178,2]
[362390173,1748245845971,-430.0,0.00019178,2]
[362390176,1748245845981,-444.44,0.00019178,2]
[362390178,1748245845990,-430.0,0.00019178,2]
[362390180,1748245846000,-430.0,0.00019178,2]
[362390181,1748245846009,-436.47943303,0.00019178,2]
[362390183,1748245846019,-430.0,0.00019178,2]
[362390186,1748245846029,-432.14,0.00019178,2]
[362390187,1748245846039,-430.0,0.00019178,2]
[362390191,1748245846048,-430.0,0.00019178,2]
[362390195,1748245846058,-709.96,0.00019178,2]
[362390198,1748245846068,-430.0,0.00019178,2]
[362390200,1748245846078,-430.0,0.00019178,2]
[362390202,1748245846087,-433.18760519,0.00019178,2]
[362390204,1748245846097,-430.0,0.00019178,2]
[362390206,1748245846107,-427.50925222,0.00019178,2]
[362390208,1748245846116,-431.07859532,0.00019178,2]
[362390210,1748245846126,-430.0,0.00019178,2]
[362390212,1748245846136,-430.0,0.00019178,2]
[362390214,1748245846146,-430.0,0.00019178,2]
[362390216,1748245846155,-430.0,0.00019178,2]
[362390218,1748245846164,-303.4194117,0.00019178,2]
[362390220,1748245846174,-430.0,0.00019178,2]
[362390222,1748245846184,-430.0,0.00019178,2]
[362390224,1748245846193,-430.0,0.00019178,2]
[362390226,1748245846202,-430.0,0.00019178,2]
[362390228,1748245846211,-430.0,0.00019178,2]
[362390230,1748245846221,-430.0,0.00019178,2]
[362390232,1748245846230,-430.88810857,0.00019178,2]
[362390234,1748245846239,-430.0,0.00019178,2]
[362390236,1748245846249,-304.07817875,0.00019178,2]
[362390238,1748245846259,-430.0,0.00019178,2]
[362390240,1748245846269,-430.0,0.00019178,2]
[362390242,1748245846278,-430.0,0.00019178,2]
[362390244,1748245846287,-430.0,0.00019178,2]
[362390246,1748245846297,-430.0,0.00019178,2]
[362390248,1748245846307,-430.0,0.00019178,2]
[362390250,1748245846316,-430.0,0.00019178,2]
[362390252,1748245846325,-430.0,0.00019178,2]
[362390254,1748245846335,-430.0,0.00019178,2]
[362390256,1748245846345,-430.0,0.00019178,2]
[362390258,1748245846354,-431.67504431,0.00019178,2]
[362390260,1748245846364,-627.56,0.00019178,2]
[362390262,1748245846374,-1010.74,0.00019178,2]
[362390264,1748245846384,-430.0,0.00019178,2]
[362390266,1748245846393,-430.0,0.00019178,2]
[362390268,1748245846403,-430.0,0.00019178,2]
[362390270,1748245846412,-430.0,0.00019178,2]
[362390272,1748245846422,-361.18800078,0.00019178,2]
[362390274,1748245846432,-430.0,0.00019178,2]
[362390276,1748245846441,-430.0,0.00019178,2]
[362390278,1748245846451,-393.72629953,0.00019178,2]
[362390280,1748245846461,-430.0,0.00019178,2]
[362390282,1748245846470,-430.0,0.00019178,2]
[362390284,1748245846480,-430.0,0.00019178,2]
[362390286,1748245846489,-430.0,0.00019178,2]
[362390288,1748245846499,-430.0,0.00019178,2]
[362390290,1748245846508,-430.0,0.00019178,2]
[362390292,1748245846517,-1887.09,0.00019178,2]
[362390294,1748245846527,-433.01600142,0.00019178,2]
[362390296,1748245846536,-1569.9,0.00019178,2]
[362390298,1748245846545,-430.0,0.00019178,2]
[362390300,1748245846554,-430.0,0.00019178,2]
[362390302,1748245846563,-430.0,0.00019178,2]
[362390304,1748245846573,-430.92291677,0.00019178,2]
[362390306,1748245846583,-430.0,0.00019178,2]
[362390308,1748245846593,-431.14370387,0.00019178,2]
[362390310,1748245846602,-430.0,0.00019178,2]
[362390312,1748245846612,-513.42475734,0.00019178,2]
[362390314,1748245846621,-430.0,0.00019178,2]
[362390316,1748245846631,-432.8277858,0.00019178,2]
[362390318,1748245846640,-430.0,0.00019178,2]
[362390320,1748245846650,-430.0,0.00019178,2]
[362390322,1748245846660,-430.0,0.00019178,2]
[362390324,1748245846670,-1924.19,0.00019178,2]
[362390326,1748245846679,-430.0,0.00019178,2]
[362390328,1748245846688,-430.0,0.00019178,2]
[362390330,1748245846698,-430.0,0.00019178,2]
[362390332,1748245846707,-430.0,0.00019178,2]
[362390334,1748245846717,-433.12661651,0.00019178,2]
[362390336,1748245846727,-430.0,0.00019178,2]
[362390338,1748245846736,-430.0,0.00019178,2]
[362390340,1748245846746,-430.0,0.00019178,2]
[362390342,1748245846756,-3057.21,0.00019178,2]
[362390344,1748245846765,-430.0,0.00019178,2]
[362390346,1748245846775,-436.88955463,0.00019178,2]
[362390348,1748245846784,-518.54,0.00019178,2]
[362390350,1748245846794,-588.02,0.00019178,2]
[362390352,1748245846803,-432.09244144,0.00019178,2]
[362390354,1748245846813,-430.0,0.00019178,2]
[362390356,1748245846827,-336.36120032,0.00019178,2]
[362390358,1748245846836,-430.0,0.00019178,2]
[362390360,1748245846846,-431.15870649,0.00019178,2]
[362390362,1748245846855,-404.38847281,0.00019178,2]
[362390364,1748245846867,-430.0,0.00019178,2]
[362390366,1748245846877,-430.0,0.00019178,2]
[362390368,1748245846887,-468.75,0.00019178,2]
[362390370,1748245846898,-402.32390117,0.00019178,2]
[362390371,1748245846908,-430.0,0.00019178,2]
[362390372,1748245846916,-430.0,0.00019178,2]
[362390373,1748245846926,-430.0,0.00019178,2]
[362390374,1748245846935,-430.0,0.00019178,2]
[362390375,1748245846944,-402.74733377,0.00019178,2]
[362390376,1748245846954,-430.0,0.00019178,2]
[362390377,1748245846963,-430.0,0.00019178,2]
[362390378,1748245846972,-430.0,0.00019178,2]
[362390379,1748245846982,-430.0,0.00019178,2]
[362390380,1748245846991,-527.72755288,0.00019178,2]
[362390381,1748245847000,-409.54582418,0.00019178,2]
[362390382,1748245847011,-299.7921137,0.00019178,2]
[362390383,1748245847020,-430.0,0.00019178,2]
[362390384,1748245847030,-430.0,0.00019178,2]
[362390385,1748245847040,-407.91675714,0.00019178,2]
[362390386,1748245847049,-430.0,0.00019178,2]
[362390387,1748245847058,-1257.45,0.00019178,2]
[362390388,1748245847068,-403.46663617,0.00019178,2]
[362390390,1748245847078,-430.0,0.00019178,2]
[362390392,1748245847088,-430.0,0.00019178,2]
[362390394,1748245847098,-402.95272421,0.00019178,2]
[362390396,1748245847108,-430.0,0.00019178,2]
[362390398,1748245847117,-408.288862,0.00019178,2]
[362390400,1748245847126,-430.0,0.00019178,2]
[362390402,1748245847136,-430.9953378,0.00019178,2]
[362390404,1748245847146,-407.1139216,0.00019178,2]
[362390406,1748245847155,-1149.24,0.00019178,2]
[362390408,1748245847164,-403.17788107,0.00019178,2]
[362390410,1748245847173,-430.0,0.00019178,2]
[362390412,1748245847184,-404.75239092,0.00019178,2]
[362390414,1748245847195,-401.71795561,0.00019178,2]
[362390415,1748245847204,-430.0,0.00019178,2]
[362390417,1748245847216,-430.0,0.00019178,2]
[362390419,1748245847227,-430.0,0.00019178,2]
[362390421,1748245847238,-430.0,0.00019178,2]
[362390424,1748245847247,-430.0,0.00019178,2]
[362390426,1748245847257,-430.0,0.00019178,2]
[362390428,1748245847267,-403.16433165,0.00019178,2]
[362390430,1748245847276,-445.20495168,0.00019178,2]
[362390432,1748245847286,-435.21443288,0.00019178,2]
[362390434,1748245847296,-430.0,0.00019178,2]
[362390436,1748245847306,-430.0,0.00019178,2]
[362390437,1748245847315,-430.0,0.00019178,2]
[362390439,1748245847325,-430.0,0.00019178,2]
[362390441,1748245847334,-500.0,0.00019178,2]
[362390443,1748245847344,-500.0,0.00019178,2]
[362390445,1748245847354,-500.0,0.00019178,2]
[362390447,1748245847363,-500.0,0.00019178,2]
[362390449,1748245847373,-500.0,0.00019178,2]
[362390451,1748245847382,-500.0,0.00019178,2]
[362390453,1748245847392,-500.0,0.00019178,2]
[362390455,1748245847401,-500.0,0.00019178,2]
[362390456,1748245847411,-500.0,0.00019178,2]
[362390457,1748245847420,-500.0,0.00019178,2]
[362390458,1748245847429,-500.0,0.00019178,2]
[362390459,1748245847438,-500.0,0.00019178,2]
[362390460,1748245847447,-430.0,0.00019178,2]
[362390461,1748245847456,-430.0,0.00019178,2]
[362390462,1748245847466,-500.0,0.00019178,2]
[362390463,1748245847475,-402.66794232,0.00019178,2]
[362390464,1748245847484,-430.0,0.00019178,2]
[362390465,1748245847494,-430.0,0.00019178,2]
[362390466,1748245847503,-430.0,0.00019178,2]
[362390467,1748245847513,-651.02,0.00019178,2]
[362390468,1748245847522,-180.993694,0.00019178,2]
[362390469,1748245847532,-849.48359753,0.00019239,2]
[362390470,1748245847541,-160.0,0.0001928,2]
[362390471,1748245847550,-229.15402412,0.0001928,2]
[362390472,1748245847560,-894.64583333,0.0001928,2]
[362390473,1748245847569,-160.0,0.0001928,2]
[362390474,1748245847578,-423.08503179,0.0001928,2]
[362390475,1748245847588,-160.0,0.0001928,2]
[362390476,1748245847597,-212.59253735,0.0001928,2]
[362390477,1748245847607,-12654.40314616,0.0001928,2]
[362390479,1748245847617,-160.0,0.0001928,2]
[362390480,1748245847627,-151.0,0.000193,2]
[362390481,1748245847636,-160.0,0.00019309,2]
[362390483,1748245847646,-160.0,0.00019309,2]
[362390485,1748245847655,-167.65925321,0.00019352,2]
[362390487,1748245847665,-369.36,0.0001936,3]
[362390488,1748245847675,-506.03007012,0.00019361,2]
[362390489,1748245847685,-502.2684677,0.00019361,2]
[362390490,1748245847697,-500.0,0.00019361,2]
[362390491,1748245847706,-1112.61514983,0.00019383,2]
[362390492,1748245847716,-500.0,0.00019435,2]
[362390493,1748245847726,-500.0,0.00019435,2]
[362390495,1748245847736,-400.0,0.00019452,2]
[362390496,1748245847746,-430.0,0.00019452,2]
[362390497,1748245847756,-430.0,0.00019452,2]
[362390498,1748245847766,-430.0,0.00019452,2]
[362390499,1748245847776,-430.0,0.00019452,2]
[362390500,1748245847786,-430.0,0.00019452,2]
[362390501,1748245847797,-430.0,0.00019452,2]
[362390502,1748245847806,-430.0,0.00019452,2]
[362390503,1748245847819,-342.11704127,0.00019452,2]
[362390504,1748245847829,-430.0,0.00019452,2]
[362390511,1748245847945,-430.0,0.00019452,2]
[362390512,1748245847956,-430.0,0.00019452,2]
[362390513,1748245847967,-430.0,0.00019452,2]
[362390514,1748245847977,-430.0,0.00019452,2]
[362390515,1748245847987,-446.26725662,0.00019452,2]
[362390516,1748245847998,-430.0,0.00019452,2]
[362390517,1748245848009,-430.0,0.00019452,2]
[362390518,1748245848018,-430.0,0.00019452,2]
[362390519,1748245848028,-430.0,0.00019452,2]
[362390520,1748245848038,-430.0,0.00019452,2]
[362390521,1748245848047,-430.0,0.00019452,2]
[362390522,1748245848057,-430.0,0.00019452,2]
[362390523,1748245848066,-430.0,0.00019452,2]
[362390524,1748245848075,-430.0,0.00019452,2]
[362390525,1748245848085,-430.0,0.00019452,2]
[362390526,1748245848095,-430.0,0.00019452,2]
[362390527,1748245848104,-430.0,0.00019452,2]
[362390528,1748245848114,-430.0,0.00019452,2]
[362390529,1748245848123,-240.81,0.00019452,2]
[362390530,1748245848133,-430.0,0.00019452,2]
[362390531,1748245848142,-507.72,0.00019452,2]
[362390532,1748245848152,-430.0,0.00019452,2]
[362390533,1748245848161,-430.0,0.00019452,2]
[362390534,1748245848171,-399.6625172,0.00019452,2]
[362390535,1748245848181,-430.0,0.00019452,2]
[362390536,1748245848191,-430.0,0.00019452,2]
[362390537,1748245848200,-430.0,0.00019452,2]
[362390538,1748245848210,-430.0,0.00019452,2]
[362390539,1748245848219,-430.0,0.00019452,2]
[362390540,1748245848229,-430.0,0.00019452,2]
[362390541,1748245848238,-430.0,0.00019452,2]
[362390542,1748245848248,-430.0,0.00019452,2]
[362390543,1748245848258,-430.0,0.00019452,2]
[362390544,1748245848267,-507.4490882,0.00019452,2]
[362390545,1748245848277,-430.0,0.00019452,2]
[362390546,1748245848287,-430.0,0.00019452,2]
[362390547,1748245848296,-430.0,0.00019452,2]
[362390548,1748245848306,-430.0,0.00019452,2]
[362390549,1748245848315,-486.68857539,0.00019452,2]
[362390550,1748245848325,-430.0,0.00019452,2]
[362390551,1748245848334,-444.29,0.00019452,2]
[362390552,1748245848344,-430.0,0.00019452,2]
[362390553,1748245848354,-430.0,0.00019452,2]
[362390554,1748245848364,-430.0,0.00019452,2]
[362390555,1748245848374,-221.71339719,0.00019452,2]
[362390556,1748245848383,-430.0,0.00019452,2]
[362390557,1748245848393,-430.0,0.00019452,2]
[362390558,1748245848402,-500.0,0.00019452,2]
[362390559,1748245848411,-430.0,0.00019452,2]
[362390560,1748245848421,-430.0,0.00019452,2]
[362390561,1748245848431,-430.0,0.00019452,2]
[362390562,1748245848440,-430.0,0.00019452,2]
[362390563,1748245848450,-472.4,0.00019452,2]
[362390564,1748245848460,-210.45124826,0.00019452,2]
[362390565,1748245848470,-430.0,0.00019452,2]
[362390566,1748245848479,-430.0,0.00019452,2]
[362390567,1748245848489,-466.34884344,0.00019452,2]
[362390568,1748245848499,-430.0,0.00019452,2]
[362390569,1748245848508,-430.0,0.00019452,2]
[362390570,1748245848517,-430.0,0.00019452,2]
[362390571,1748245848527,-460.0,0.00019452,2]
[362390572,1748245848536,-430.0,0.00019452,2]
[362390573,1748245848546,-430.0,0.00019452,2]
[362390574,1748245848556,-430.0,0.00019452,2]
[362390575,1748245848565,-430.0,0.00019452,2]
[362390576,1748245848575,-430.0,0.00019452,2]
[362390577,1748245848584,-430.0,0.00019452,2]